{"text_format":"1","workbook":"xlsx","n_sheets":4,"sheets":["Отдел","ТОСП","Приложение","Настройки"],"not_rendered":{"charts":0,"images":0,"macros":1,"external_links":0,"defined_names":10,"comments":0,"pivot_tables":0},"unopened":[],"bounds":{"document_bytes":16777216,"sheet_cells":100000,"rows_first":2000,"rows_last":500,"rows_between":2000,"halvings":0,"cell_chars":16384,"cell_head_chars":4096},"cells_cut":0,"cells_raw":0,"read":"whole","date_system":"1900"}

{"sheet":"Отдел","index":0,"n_rows":70,"n_cols":20,"rows_kept":70,"cut":false,"hidden":false,"merged":[[46,2,46,5],[42,2,42,3],[42,4,42,5],[42,6,42,7],[42,8,42,9],[2,2,2,3],[2,4,2,5],[2,6,2,7],[2,8,2,9],[0,2,0,8],[8,2,8,3],[9,2,9,3],[3,2,3,3],[4,2,4,3],[5,2,5,3],[6,2,6,3],[7,2,7,3]]}
[null,null,"График работы",null,null,null,null,null,null,{"$f":"PROPER(TEXT(DATE(Год,Месяц,1),\"ММММ ГГГГ\"))","v":"Январь 2016"}]
[]
[null,null,"Должность",null,"1 смена",null,"2 смена",null,"3 смена",null,null,null,null,null,null,null,null,null,null,1]
[null,null,null,null,"ФИО","С графиком работы ознакомлен(а) и согласен(а), подпись, дата","ФИО","С графиком работы ознакомлен(а) и согласен(а), подпись, дата","ФИО","С графиком работы ознакомлен(а) и согласен(а), подпись, дата",null,null,null,null,null,null,null,null,null,1]
[null,null,null,null,null,null,null,null,null,null,null,null,null,null,null,null,null,null,null,1]
[null,null,null,null,null,null,null,null,null,null,null,null,null,null,null,null,null,null,null,1]
[null,null,null,null,null,null,null,null,null,null,null,null,null,null,null,null,null,null,null,1]
[null,null,null,null,null,null,null,null,null,null,null,null,null,null,null,null,null,null,null,1]
[null,null,null,null,null,null,null,null,null,null,null,null,null,null,null,null,null,null,null,1]
[null,null,null,null,null,null,null,null,null,null,null,null,null,null,null,null,null,null,null,1]
[null,"Условие","дата","день недели","продол-ть смены, час","рабочее время","продол-ть смены, час","рабочее время","продол-ть смены, час","рабочее время",null,null,null,null,null,null,null,null,null,1]
[null,{"$f":"IF(ROW()-Смещение_строки<=Дней_в_месяце,1,0)","v":1},{"$f":"DATE(Год,Месяц,1)","v":"2016-01-01"},{"$f":"PROPER(TEXT(C12,\"ДДДД\"))","v":"Пятница"},null,null,null,null,null,null,null,null,null,null,null,null,null,null,null,1]
[null,1,{"$f":"IF(B13,DATE(Год,Месяц,DAY($C12)+1),\"\")","v":"2016-01-02"},{"$f":"PROPER(TEXT(C13,\"ДДДД\"))","v":"Суббота"},null,null,null,null,null,null,null,null,null,null,null,null,null,null,null,1]
[null,1,"2016-01-03","Воскресенье",null,null,null,null,null,null,null,null,null,null,null,null,null,null,null,1]
[null,1,"2016-01-04","Понедельник",null,null,null,null,null,null,null,null,null,null,null,null,null,null,null,1]
[null,1,"2016-01-05","Вторник",null,null,null,null,null,null,null,null,null,null,null,null,null,null,null,1]
[null,1,"2016-01-06","Среда",null,null,null,null,null,null,null,null,null,null,null,null,null,null,null,1]
[null,1,"2016-01-07","Четверг",null,null,null,null,null,null,null,null,null,null,null,null,null,null,null,1]
[null,1,"2016-01-08","Пятница",null,null,null,null,null,null,null,null,null,null,null,null,null,null,null,1]
[null,1,"2016-01-09","Суббота",null,null,null,null,null,null,null,null,null,null,null,null,null,null,null,1]
[null,1,"2016-01-10","Воскресенье",null,null,null,null,null,null,null,null,null,null,null,null,null,null,null,1]
[null,1,"2016-01-11","Понедельник",null,null,null,null,null,null,null,null,null,null,null,null,null,null,null,1]
[null,1,"2016-01-12","Вторник",null,null,null,null,null,null,null,null,null,null,null,null,null,null,null,1]
[null,1,"2016-01-13","Среда",null,null,null,null,null,null,null,null,null,null,null,null,null,null,null,1]
[null,1,"2016-01-14","Четверг",null,null,null,null,null,null,null,null,null,null,null,null,null,null,null,1]
[null,1,"2016-01-15","Пятница",null,null,null,null,null,null,null,null,null,null,null,null,null,null,null,1]
[null,1,"2016-01-16","Суббота",null,null,null,null,null,null,null,null,null,null,null,null,null,null,null,1]
[null,1,"2016-01-17","Воскресенье",null,null,null,null,null,null,null,null,null,null,null,null,null,null,null,1]
[null,1,"2016-01-18","Понедельник",null,null,null,null,null,null,null,null,null,null,null,null,null,null,null,1]
[null,1,"2016-01-19","Вторник",null,null,null,null,null,null,null,null,null,null,null,null,null,null,null,1]
[null,1,"2016-01-20","Среда",null,null,null,null,null,null,null,null,null,null,null,null,null,null,null,1]
[null,1,"2016-01-21","Четверг",null,null,null,null,null,null,null,null,null,null,null,null,null,null,null,1]
[null,1,"2016-01-22","Пятница",null,null,null,null,null,null,null,null,null,null,null,null,null,null,null,1]
[null,1,"2016-01-23","Суббота",null,null,null,null,null,null,null,null,null,null,null,null,null,null,null,1]
[null,1,"2016-01-24","Воскресенье",null,null,null,null,null,null,null,null,null,null,null,null,null,null,null,1]
[null,1,"2016-01-25","Понедельник",null,null,null,null,null,null,null,null,null,null,null,null,null,null,null,1]
[null,1,"2016-01-26","Вторник",null,null,null,null,null,null,null,null,null,null,null,null,null,null,null,1]
[null,1,"2016-01-27","Среда",null,null,null,null,null,null,null,null,null,null,null,null,null,null,null,1]
[null,1,"2016-01-28","Четверг",null,null,null,null,null,null,null,null,null,null,null,null,null,null,null,1]
[null,1,"2016-01-29","Пятница",null,null,null,null,null,null,null,null,null,null,null,null,null,null,null,{"$f":"IF(Скрытые_функции,1,IF(B40=1,1,0))","v":1}]
[null,1,"2016-01-30","Суббота",null,null,null,null,null,null,null,null,null,null,null,null,null,null,null,{"$f":"IF(Скрытые_функции,1,IF(B41=1,1,0))","v":1}]
[null,1,"2016-01-31","Воскресенье",null,null,null,null,null,null,null,null,null,null,null,null,null,null,null,{"$f":"IF(Скрытые_функции,1,IF(B42=1,1,0))","v":1}]
[null,null,"Количество рабочих часов:",null,null,null,null,null,null,null,null,null,null,null,null,null,null,null,null,1]
[null,null,null,null,null,null,null,null,null,null,null,null,null,null,null,null,null,null,null,{"$f":"IF(Скрытые_функции,1,0)","v":0}]
[null,null,null,null,null,null,null,null,null,null,null,null,null,null,null,null,null,null,null,1]
[null,null,"Подготовил:",null,null,null,null,null,null,null,null,null,null,null,null,null,null,null,null,1]
[null,null,"Начальник отдела",null,null,null,null,null,null,null,null,null,null,null,null,null,null,null,null,1]
[null,null,null,null,null,null,"подпись",null,null,null,null,null,null,null,null,null,null,null,null,1]
[null,null,"Подготовил, Согласовано:",null,null,null,null,null,null,null,null,null,null,null,null,null,null,null,null,1]
[null,null,"Руководитель",null,null,null,null,null,null,null,null,null,null,null,null,null,null,null,null,1]
[null,null,null,null,null,null,"подпись",null,null,null,null,null,null,null,null,null,null,null,null,1]
[null,null,null,null,null,null,null,null,null,null,null,null,null,null,null,null,null,null,null,1]
[null,null,"Начальник отдела кадров",null,null,null,null,null,null,null,null,null,null,null,null,null,null,null,null,1]
[null,null,null,null,null,null,"подпись",null,null,null,null,null,null,null,null,null,null,null,null,1]
[null,null,null,null,null,null,null,null,null,null,null,null,null,null,null,null,null,null,null,1]
[null,null,null,null,null,null,null,null,null,null,null,null,null,null,null,null,null,null,null,0]
[null,null,null,null,null,null,null,null,null,null,null,null,null,null,null,null,null,null,null,0]
[null,null,null,null,null,null,null,null,null,null,null,null,null,null,null,null,null,null,null,0]
[null,null,null,null,null,null,null,null,null,null,null,null,null,null,null,null,null,null,null,0]
[null,null,null,null,null,null,null,null,null,null,null,null,null,null,null,null,null,null,null,0]
[null,null,null,null,null,null,null,null,null,null,null,null,null,null,null,null,null,null,null,0]
[null,null,null,null,null,null,null,null,null,null,null,null,null,null,null,null,null,null,null,0]
[null,null,null,null,null,null,null,null,null,null,null,null,null,null,null,null,null,null,null,0]
[null,null,null,null,null,null,null,null,null,null,null,null,null,null,null,null,null,null,null,0]
[null,null,null,null,null,null,null,null,null,null,null,null,null,null,null,null,null,null,null,0]
[null,null,null,null,null,null,null,null,null,null,null,null,null,null,null,null,null,null,null,0]
[null,null,null,null,null,null,null,null,null,null,null,null,null,null,null,null,null,null,null,0]
[null,null,null,null,null,null,null,null,null,null,null,null,null,null,null,null,null,null,null,0]
[null,null,null,null,null,null,null,null,null,null,null,null,null,null,null,null,null,null,null,0]
[null,{"$f":"IF(Скрытые_функции,1,0)","v":0},1,1,1,1,1,1,1,1,1,{"$f":"IF(Скрытые_функции,1,0)","v":0},0,0,0,0,0,0,0,0]

{"sheet":"ТОСП","index":1,"n_rows":50,"n_cols":20,"rows_kept":50,"cut":false,"hidden":false,"merged":[[2,10,3,10],[0,2,0,8],[2,4,3,4],[2,2,2,3],[2,5,3,5],[2,6,3,6],[2,7,3,7],[2,8,3,8],[2,9,3,9]]}
[null,null,"График работы",null,null,null,null,null,null,{"$f":"PROPER(TEXT(DATE(Год,Месяц,1),\"ММММ ГГГГ\"))","v":"Январь 2016"}]
[]
[null,null,"Тосп",null,null,null,null,null,null,null,null,null,null,null,null,null,null,null,null,1]
[null,"Условие","Дата","День недели",null,null,null,null,null,null,null,null,null,null,null,null,null,null,null,1]
[null,{"$f":"IF(ROW()-Смещение_строки_ТОСП<=Дней_в_месяце,1,0)","v":1},{"$f":"DATE(Год,Месяц,1)","v":"2016-01-01"},{"$f":"PROPER(TEXT(C5,\"ДДДД\"))","v":"Пятница"},null,null,null,null,null,null,null,null,null,null,null,null,null,null,null,1]
[null,1,{"$f":"IF(B6,DATE(Год,Месяц,DAY($C5)+1),\"\")","v":"2016-01-02"},{"$f":"PROPER(TEXT(C6,\"ДДДД\"))","v":"Суббота"},null,null,null,null,null,null,null,null,null,null,null,null,null,null,null,1]
[null,1,"2016-01-03","Воскресенье",null,null,null,null,null,null,null,null,null,null,null,null,null,null,null,1]
[null,1,"2016-01-04","Понедельник",null,null,null,null,null,null,null,null,null,null,null,null,null,null,null,1]
[null,1,"2016-01-05","Вторник",null,null,null,null,null,null,null,null,null,null,null,null,null,null,null,1]
[null,1,"2016-01-06","Среда",null,null,null,null,null,null,null,null,null,null,null,null,null,null,null,1]
[null,1,"2016-01-07","Четверг",null,null,null,null,null,null,null,null,null,null,null,null,null,null,null,1]
[null,1,"2016-01-08","Пятница",null,null,null,null,null,null,null,null,null,null,null,null,null,null,null,1]
[null,1,"2016-01-09","Суббота",null,null,null,null,null,null,null,null,null,null,null,null,null,null,null,1]
[null,1,"2016-01-10","Воскресенье",null,null,null,null,null,null,null,null,null,null,null,null,null,null,null,1]
[null,1,"2016-01-11","Понедельник",null,null,null,null,null,null,null,null,null,null,null,null,null,null,null,1]
[null,1,"2016-01-12","Вторник",null,null,null,null,null,null,null,null,null,null,null,null,null,null,null,1]
[null,1,"2016-01-13","Среда",null,null,null,null,null,null,null,null,null,null,null,null,null,null,null,1]
[null,1,"2016-01-14","Четверг",null,null,null,null,null,null,null,null,null,null,null,null,null,null,null,1]
[null,1,"2016-01-15","Пятница",null,null,null,null,null,null,null,null,null,null,null,null,null,null,null,1]
[null,1,"2016-01-16","Суббота",null,null,null,null,null,null,null,null,null,null,null,null,null,null,null,1]
[null,1,"2016-01-17","Воскресенье",null,null,null,null,null,null,null,null,null,null,null,null,null,null,null,1]
[null,1,"2016-01-18","Понедельник",null,null,null,null,null,null,null,null,null,null,null,null,null,null,null,1]
[null,1,"2016-01-19","Вторник",null,null,null,null,null,null,null,null,null,null,null,null,null,null,null,1]
[null,1,"2016-01-20","Среда",null,null,null,null,null,null,null,null,null,null,null,null,null,null,null,1]
[null,1,"2016-01-21","Четверг",null,null,null,null,null,null,null,null,null,null,null,null,null,null,null,1]
[null,1,"2016-01-22","Пятница",null,null,null,null,null,null,null,null,null,null,null,null,null,null,null,1]
[null,1,"2016-01-23","Суббота",null,null,null,null,null,null,null,null,null,null,null,null,null,null,null,1]
[null,1,"2016-01-24","Воскресенье",null,null,null,null,null,null,null,null,null,null,null,null,null,null,null,1]
[null,1,"2016-01-25","Понедельник",null,null,null,null,null,null,null,null,null,null,null,null,null,null,null,1]
[null,1,"2016-01-26","Вторник",null,null,null,null,null,null,null,null,null,null,null,null,null,null,null,1]
[null,1,"2016-01-27","Среда",null,null,null,null,null,null,null,null,null,null,null,null,null,null,null,1]
[null,1,"2016-01-28","Четверг",null,null,null,null,null,null,null,null,null,null,null,null,null,null,null,1]
[null,1,"2016-01-29","Пятница",null,null,null,null,null,null,null,null,null,null,null,null,null,null,null,{"$f":"IF(Скрытые_функции,1,IF(B33=1,1,0))","v":1}]
[null,1,"2016-01-30","Суббота",null,null,null,null,null,null,null,null,null,null,null,null,null,null,null,{"$f":"IF(Скрытые_функции,1,IF(B34=1,1,0))","v":1}]
[null,1,"2016-01-31","Воскресенье",null,null,null,null,null,null,null,null,null,null,null,null,null,null,null,{"$f":"IF(Скрытые_функции,1,IF(B35=1,1,0))","v":1}]
[null,null,null,null,null,null,null,null,null,null,null,null,null,null,null,null,null,null,null,1]
[null,null,"Подготовил:",null,null,null,null,null,null,null,null,null,null,null,null,null,null,null,null,1]
[null,null,"Начальник отдела",null,null,null,null,null,null,null,null,null,null,null,null,null,null,null,null,1]
[null,null,null,null,null,null,null,null,null,null,null,null,null,null,null,null,null,null,null,1]
[null,null,null,null,null,null,null,null,null,null,null,null,null,null,null,null,null,null,null,1]
[null,null,null,null,null,null,null,null,null,null,null,null,null,null,null,null,null,null,null,1]
[null,null,null,null,null,null,null,null,null,null,null,null,null,null,null,null,null,null,null,{"$f":"IF(Скрытые_функции,1,0)","v":0}]
[null,null,null,null,null,null,null,null,null,null,null,null,null,null,null,null,null,null,null,0]
[null,null,null,null,null,null,null,null,null,null,null,null,null,null,null,null,null,null,null,0]
[null,null,null,null,null,null,null,null,null,null,null,null,null,null,null,null,null,null,null,0]
[null,null,null,null,null,null,null,null,null,null,null,null,null,null,null,null,null,null,null,0]
[null,null,null,null,null,null,null,null,null,null,null,null,null,null,null,null,null,null,null,0]
[null,null,null,null,null,null,null,null,null,null,null,null,null,null,null,null,null,null,null,0]
[null,null,null,null,null,null,null,null,null,null,null,null,null,null,null,null,null,null,null,0]
[null,{"$f":"IF(Скрытые_функции,1,0)","v":0},1,1,1,1,1,1,1,1,1,1,{"$f":"IF(Скрытые_функции,1,0)","v":0},0,0,0,0,0,0,0]

{"sheet":"Приложение","index":2,"n_rows":40,"n_cols":40,"rows_kept":40,"cut":false,"hidden":false,"merged":[[7,2,10,2],[11,2,14,2],[15,2,18,2],[5,2,6,2],[2,6,2,36],[2,5,4,5],[2,4,4,4],[2,3,4,3],[2,2,4,2]]}
[]
[null,null,null,null,null,"Условие",{"$f":"IF(COLUMN()-Смещение_Табеля<=Дней_в_месяце,1,0)","v":1},1,1,1,1,1,1,1,1,1,1,1,1,1,1,1,1,1,1,1,1,1,1,1,1,1,1,1,1,1,1,null,null,{"$f":"IF(Скрытые_функции,1,0)","v":0}]
[null,null,"Смена","№ п/п","ФИО","Должность",{"$f":"PROPER(TEXT(DATE(Год,Месяц,1),\"ММММ ГГГГ\"))","v":"Январь 2016"},null,null,null,null,null,null,null,null,null,null,null,null,null,null,null,null,null,null,null,null,null,null,null,null,null,null,null,null,null,null,null,null,1]
[null,null,null,null,null,null,{"$f":"DATE(Год,Месяц,1)","v":"2016-01-01"},{"$f":"IF(H2,DATE(Год,Месяц,DAY(G$4)+1),\"\")","v":"2016-01-02"},{"$f":"IF(I2,DATE(Год,Месяц,DAY(H$4)+1),\"\")","v":"2016-01-03"},{"$f":"IF(J2,DATE(Год,Месяц,DAY(I$4)+1),\"\")","v":"2016-01-04"},{"$f":"IF(K2,DATE(Год,Месяц,DAY(J$4)+1),\"\")","v":"2016-01-05"},{"$f":"IF(L2,DATE(Год,Месяц,DAY(K$4)+1),\"\")","v":"2016-01-06"},{"$f":"IF(M2,DATE(Год,Месяц,DAY(L$4)+1),\"\")","v":"2016-01-07"},{"$f":"IF(N2,DATE(Год,Месяц,DAY(M$4)+1),\"\")","v":"2016-01-08"},{"$f":"IF(O2,DATE(Год,Месяц,DAY(N$4)+1),\"\")","v":"2016-01-09"},{"$f":"IF(P2,DATE(Год,Месяц,DAY(O$4)+1),\"\")","v":"2016-01-10"},{"$f":"IF(Q2,DATE(Год,Месяц,DAY(P$4)+1),\"\")","v":"2016-01-11"},{"$f":"IF(R2,DATE(Год,Месяц,DAY(Q$4)+1),\"\")","v":"2016-01-12"},{"$f":"IF(S2,DATE(Год,Месяц,DAY(R$4)+1),\"\")","v":"2016-01-13"},{"$f":"IF(T2,DATE(Год,Месяц,DAY(S$4)+1),\"\")","v":"2016-01-14"},{"$f":"IF(U2,DATE(Год,Месяц,DAY(T$4)+1),\"\")","v":"2016-01-15"},{"$f":"IF(V2,DATE(Год,Месяц,DAY(U$4)+1),\"\")","v":"2016-01-16"},{"$f":"IF(W2,DATE(Год,Месяц,DAY(V$4)+1),\"\")","v":"2016-01-17"},{"$f":"IF(X2,DATE(Год,Месяц,DAY(W$4)+1),\"\")","v":"2016-01-18"},{"$f":"IF(Y2,DATE(Год,Месяц,DAY(X$4)+1),\"\")","v":"2016-01-19"},{"$f":"IF(Z2,DATE(Год,Месяц,DAY(Y$4)+1),\"\")","v":"2016-01-20"},{"$f":"IF(AA2,DATE(Год,Месяц,DAY(Z$4)+1),\"\")","v":"2016-01-21"},{"$f":"IF(AB2,DATE(Год,Месяц,DAY(AA$4)+1),\"\")","v":"2016-01-22"},{"$f":"IF(AC2,DATE(Год,Месяц,DAY(AB$4)+1),\"\")","v":"2016-01-23"},{"$f":"IF(AD2,DATE(Год,Месяц,DAY(AC$4)+1),\"\")","v":"2016-01-24"},{"$f":"IF(AE2,DATE(Год,Месяц,DAY(AD$4)+1),\"\")","v":"2016-01-25"},{"$f":"IF(AF2,DATE(Год,Месяц,DAY(AE$4)+1),\"\")","v":"2016-01-26"},{"$f":"IF(AG2,DATE(Год,Месяц,DAY(AF$4)+1),\"\")","v":"2016-01-27"},{"$f":"IF(AH2,DATE(Год,Месяц,DAY(AG$4)+1),\"\")","v":"2016-01-28"},{"$f":"IF(AI2,DATE(Год,Месяц,DAY(AH$4)+1),\"\")","v":"2016-01-29"},{"$f":"IF(AJ2,DATE(Год,Месяц,DAY(AI$4)+1),\"\")","v":"2016-01-30"},{"$f":"IF(AK2,DATE(Год,Месяц,DAY(AJ$4)+1),\"\")","v":"2016-01-31"},null,null,1]
[null,null,null,null,null,null,{"$f":"PROPER(TEXT(G4,\"ДДД\"))","v":"Пт"},{"$f":"PROPER(TEXT(H4,\"ДДД\"))","v":"Сб"},"Вс","Пн","Вт","Ср","Чт","Пт","Сб","Вс","Пн","Вт","Ср","Чт","Пт","Сб","Вс","Пн","Вт","Ср","Чт","Пт","Сб","Вс","Пн","Вт","Ср","Чт","Пт","Сб","Вс",null,null,1]
[null,null,null,1,null,null,null,null,null,null,null,null,null,null,null,null,null,null,null,null,null,null,null,null,null,null,null,null,null,null,null,null,null,null,null,null,null,null,null,1]
[null,null,null,2,null,null,null,null,null,null,null,null,null,null,null,null,null,null,null,null,null,null,null,null,null,null,null,null,null,null,null,null,null,null,null,null,null,null,null,1]
[null,null,1,3,null,null,null,null,null,null,null,null,null,null,null,null,null,null,null,null,null,null,null,null,null,null,null,null,null,null,null,null,null,null,null,null,null,null,null,1]
[null,null,null,4,null,null,null,null,null,null,null,null,null,null,null,null,null,null,null,null,null,null,null,null,null,null,null,null,null,null,null,null,null,null,null,null,null,null,null,1]
[null,null,null,5,null,null,null,null,null,null,null,null,null,null,null,null,null,null,null,null,null,null,null,null,null,null,null,null,null,null,null,null,null,null,null,null,null,null,null,1]
[null,null,null,6,null,null,null,null,null,null,null,null,null,null,null,null,null,null,null,null,null,null,null,null,null,null,null,null,null,null,null,null,null,null,null,null,null,null,null,1]
[null,null,2,7,null,null,null,null,null,null,null,null,null,null,null,null,null,null,null,null,null,null,null,null,null,null,null,null,null,null,null,null,null,null,null,null,null,null,null,1]
[null,null,null,8,null,null,null,null,null,null,null,null,null,null,null,null,null,null,null,null,null,null,null,null,null,null,null,null,null,null,null,null,null,null,null,null,null,null,null,1]
[null,null,null,9,null,null,null,null,null,null,null,null,null,null,null,null,null,null,null,null,null,null,null,null,null,null,null,null,null,null,null,null,null,null,null,null,null,null,null,1]
[null,null,null,10,null,null,null,null,null,null,null,null,null,null,null,null,null,null,null,null,null,null,null,null,null,null,null,null,null,null,null,null,null,null,null,null,null,null,null,1]
[null,null,3,11,null,null,null,null,null,null,null,null,null,null,null,null,null,null,null,null,null,null,null,null,null,null,null,null,null,null,null,null,null,null,null,null,null,null,null,1]
[null,null,null,12,null,null,null,null,null,null,null,null,null,null,null,null,null,null,null,null,null,null,null,null,null,null,null,null,null,null,null,null,null,null,null,null,null,null,null,1]
[null,null,null,13,null,null,null,null,null,null,null,null,null,null,null,null,null,null,null,null,null,null,null,null,null,null,null,null,null,null,null,null,null,null,null,null,null,null,null,1]
[null,null,null,14,null,null,null,null,null,null,null,null,null,null,null,null,null,null,null,null,null,null,null,null,null,null,null,null,null,null,null,null,null,null,null,null,null,null,null,1]
[null,null,null,null,null,null,null,null,null,null,null,null,null,null,null,null,null,null,null,null,null,null,null,null,null,null,null,null,null,null,null,null,null,null,null,null,null,null,null,1]
[null,null,null,null,null,null,null,null,null,null,null,null,null,null,null,null,null,null,null,null,null,null,null,null,null,null,null,null,null,null,null,null,null,null,null,null,null,null,null,1]
[null,null,null,null,null,null,null,null,null,null,null,null,null,null,null,null,null,null,null,null,null,null,null,null,null,null,null,null,null,null,null,null,null,null,null,null,null,null,null,{"$f":"IF(Скрытые_функции,1,0)","v":0}]
[null,null,null,null,null,null,null,null,null,null,null,null,null,null,null,null,null,null,null,null,null,null,null,null,null,null,null,null,null,null,null,null,null,null,null,null,null,null,null,0]
[null,null,null,null,null,null,null,null,null,null,null,null,null,null,null,null,null,null,null,null,null,null,null,null,null,null,null,null,null,null,null,null,null,null,null,null,null,null,null,0]
[null,null,null,null,null,null,null,null,null,null,null,null,null,null,null,null,null,null,null,null,null,null,null,null,null,null,null,null,null,null,null,null,null,null,null,null,null,null,null,0]
[null,null,null,null,null,null,null,null,null,null,null,null,null,null,null,null,null,null,null,null,null,null,null,null,null,null,null,null,null,null,null,null,null,null,null,null,null,null,null,0]
[null,null,null,null,null,null,null,null,null,null,null,null,null,null,null,null,null,null,null,null,null,null,null,null,null,null,null,null,null,null,null,null,null,null,null,null,null,null,null,0]
[null,null,null,null,null,null,null,null,null,null,null,null,null,null,null,null,null,null,null,null,null,null,null,null,null,null,null,null,null,null,null,null,null,null,null,null,null,null,null,0]
[null,null,null,null,null,null,null,null,null,null,null,null,null,null,null,null,null,null,null,null,null,null,null,null,null,null,null,null,null,null,null,null,null,null,null,null,null,null,null,0]
[null,null,null,null,null,null,null,null,null,null,null,null,null,null,null,null,null,null,null,null,null,null,null,null,null,null,null,null,null,null,null,null,null,null,null,null,null,null,null,0]
[null,null,null,null,null,null,null,null,null,null,null,null,null,null,null,null,null,null,null,null,null,null,null,null,null,null,null,null,null,null,null,null,null,null,null,null,null,null,null,0]
[null,null,null,null,null,null,null,null,null,null,null,null,null,null,null,null,null,null,null,null,null,null,null,null,null,null,null,null,null,null,null,null,null,null,null,null,null,null,null,0]
[null,null,null,null,null,null,null,null,null,null,null,null,null,null,null,null,null,null,null,null,null,null,null,null,null,null,null,null,null,null,null,null,null,null,null,null,null,null,null,0]
[null,null,null,null,null,null,null,null,null,null,null,null,null,null,null,null,null,null,null,null,null,null,null,null,null,null,null,null,null,null,null,null,null,null,null,null,null,null,null,0]
[null,null,null,null,null,null,null,null,null,null,null,null,null,null,null,null,null,null,null,null,null,null,null,null,null,null,null,null,null,null,null,null,null,null,null,null,null,null,null,0]
[null,null,null,null,null,null,null,null,null,null,null,null,null,null,null,null,null,null,null,null,null,null,null,null,null,null,null,null,null,null,null,null,null,null,null,null,null,null,null,0]
[null,null,null,null,null,null,null,null,null,null,null,null,null,null,null,null,null,null,null,null,null,null,null,null,null,null,null,null,null,null,null,null,null,null,null,null,null,null,null,0]
[null,null,null,null,null,null,null,null,null,null,null,null,null,null,null,null,null,null,null,null,null,null,null,null,null,null,null,null,null,null,null,null,null,null,null,null,null,null,null,0]
[null,null,null,null,null,null,null,null,null,null,null,null,null,null,null,null,null,null,null,null,null,null,null,null,null,null,null,null,null,null,null,null,null,null,null,null,null,null,null,0]
[null,{"$f":"IF(Скрытые_функции,1,0)","v":0},1,1,1,1,1,1,1,1,1,1,1,1,1,1,1,1,1,1,1,1,1,1,1,1,1,1,1,1,1,1,1,1,{"$f":"IF(Скрытые_функции,1,IF(AI2=1,1,0))","v":1},{"$f":"IF(Скрытые_функции,1,IF(AJ2=1,1,0))","v":1},{"$f":"IF(Скрытые_функции,1,IF(AK2=1,1,0))","v":1},1,{"$f":"IF(Скрытые_функции,1,0)","v":0},0]

{"sheet":"Настройки","index":3,"n_rows":35,"n_cols":16,"rows_kept":35,"cut":false,"hidden":false,"merged":[[9,1,9,2],[17,1,17,2],[1,7,1,8]]}
[null,null,null,null,null,null,null,null,null,null,null,"Праздники"]
[null,"Месяц",1,null,null,null,null,"Сотрудники",null,null,null,"2016-01-06",null,null,null,"Нерабочие дни"]
[null,"Год",2016,null,null,null,null,"Должность","ФИО",null,null,"2016-01-13",null,null,null,"2016-01-01"]
[null,"Дней в месяце",{"$f":"EOMONTH(DATE(Год,Месяц,1),0)-DATE(Год,Месяц,1)+1","v":31},null,null,null,null,null,null,null,null,null,null,null,null,"2016-01-02"]
[null,"Первая среда месяца",{"$f":"SMALL((IF(((WEEKDAY(DATE(Год,Месяц,ROW(L1:L28)))=4)*ISERROR(MATCH(DATE(Год,Месяц,ROW(L1:L28)),L1:L200,0))),DATE(Год,Месяц,ROW(L1:L28)),9^9)),1)","v":"2016-01-20"},null,null,null,null,null,null,null,null,null,null,null,null,"2016-01-03"]
[null,null,null,null,null,null,null,null,null,null,null,null,null,null,null,"2016-01-04"]
[null,null,null,null,null,null,null,null,null,null,null,null,null,null,null,"2016-01-05"]
[null,"Норматив рабочих часов",168,null,null,null,null,null,null,null,null,null,null,null,null,"2016-01-06"]
[null,null,null,null,null,null,null,null,null,null,null,null,null,null,null,"2016-01-07"]
[null,"Часы работы",null,null,null,null,null,null,null,null,null,null,null,null,null,"2016-01-08"]
[null,"Понедельник","09:00 - 19:00",null,null,null,null,null,null,null,null,null,null,null,null,"2016-01-09"]
[null,"Вторник","09:00 - 20:00",null,null,null,null,null,null,null,null,null,null,null,null,"2016-02-23"]
[null,"Среда","09:00 - 19:00",null,null,null,null,null,null,null,null,null,null,null,null,"2016-03-08"]
[null,"Четверг","09:00 - 20:00",null,null,null,null,null,null,null,null,null,null,null,null,"2016-05-01"]
[null,"Пятница","09:00 - 19:00",null,null,null,null,null,null,null,null,null,null,null,null,"2016-05-09"]
[null,"Суббота","09:00 - 16:00",null,null,null,null,null,null,null,null,null,null,null,null,"2016-06-12"]
[null,null,null,null,null,null,null,null,null,null,null,null,null,null,null,"2016-11-04"]
[null,"Рабочее время",null,"Обед","Обед"]
[null,"Первый интервал","9:00 - 18:00","13:00 - 14:00","13:30 - 14:30"]
[null,"Второй интервал","10:00 - 19:00","14:00 - 15:00","14:30 - 15:30"]
[null,"Третий интервал","11:00 - 20:00","15:00 - 16:00","15:30 - 16:30"]
[]
[null,"Смещение строки",11]
[null,"Смещение строки ТОСП",4]
[null,"Смещение Табеля",6]
[]
[]
[]
[]
[]
[]
[]
[]
[]
[null,"Скрытые функции",0]